[Event "Dutch Open-ch 2019"]
[Site "Dieren"]
[Date "2019.07.30"]
[Round "7.8"]
[White "Mohite, Ranveer"]
[Black "Lahaye, Rick"]
[Result "1-0"]
[ECO "B48"]
[WhiteElo "2229"]
[BlackElo "2421"]
[Annotator "NA"]
[PlyCount "97"]
[EventDate "2019.07.23"]
[EventType "swiss"]
[EventCountry "NED"]
[SourceTitle "playchess.com"]
[Source "ChessBase"]
[SourceQuality "1"]
[TimeControl "40/5400+30:1800+30"]

1. e4 {[%emt 0:02:49]} c5 {[%emt 0:01:29]} 2. Nf3 {[%emt 0:00:18]} e6 {[%emt 0:00:18]} 3. d4 {[%emt 0:00:26]} cxd4 {[%emt 0:00:11]} 4. Nxd4 {[%emt 0:00:03]} a6 {[%emt 0:00:19]} 5. Nc3 {[%emt 0:00:50]} Qc7 {[%emt 0:00:27]} 6. Be3 {[%emt 0:03:50]} Nc6 {[%emt 0:06:44]} 7. Qd2 {[%emt 0:01:25]} Nf6 {[%emt 0:04:44]} 8. f3 {[%emt 0:02:45]} h5 {[%emt 0:01:04]} 9. O-O-O {[%emt 0:02:41]} d6 {[%emt 0:10:33]} 10. Kb1 {[%emt 0:00:11]} Bd7 {[%emt 0:01:09]} 11. Nb3 {[%emt 0:18:41]} Rb8 {[%emt 0:04:16]} 12. Bd3 {[%emt 0:05:58]} b5 {[%emt 0:04:55]} 13. Rhe1 {[%emt 0:09:34]} Ne5 {[%emt 0:12:46]} 14. Ka1 {[%emt 0:04:20]} a5 {[%emt 0:07:35]} 15. Nd4 {[%emt 0:05:31]} Nxd3 {[%emt 0:02:31]} 16. cxd3 {[%emt 0:06:02]} b4 {[%emt 0:01:45]} 17. Nce2 {[%emt 0:01:30]} e5 {[%emt 0:02:25]} 18. Nf5 {[%emt 0:07:07]} g6 {[%emt 0:00:20]} 19. Nfg3 {[%emt 0:01:23]} Bb5 {[%emt 0:07:15]} 20. Rc1 {[%emt 0:03:26]} Qb7 {[%emt 0:00:06]} 21. d4 {[%emt 0:00:22]} Nd7 {[%emt 0:00:05]} 22. f4 {[%emt 0:02:30]} h4 {[%emt 0:01:41]} 23. Nh1 {[%emt 0:00:57]} Bg7 {[%emt 0:06:34]} 24. Nf2 {[%emt 0:03:11]} O-O {[%emt 0:00:23]} 25. fxe5 {[%emt 0:03:28]} dxe5 {[%emt 0:00:28]} 26. Bh6 {[%emt 0:00:19]} Bxh6 {[%emt 0:02:11]} 27. Qxh6 {[%emt 0:00:16]} Bxe2 {[%emt 0:00:05]} 28. Rxe2 {[%emt 0:00:57]} exd4 {[%emt 0:00:34]} 29. Ng4 {[%emt 0:03:21]} Qa6 {[%emt 0:02:32]} 30. e5 {[%emt 0:03:55]} Qe6 {[%emt 0:03:33]} 31. Qxh4 {[%emt 0:02:42]} d3 {[%emt 0:01:13]} 32. Rf2 {[%emt 0:02:30]} Rbc8 {[%emt 0:05:29]} 33. Rcf1 {[%emt 0:01:45]} Rc4 {[%emt 0:04:02]} 34. h3 {[%emt 0:00:25]} Rc2 {[%emt 0:02:52]} 35. Qh6 {[%emt 0:01:30]} Rxf2 {[%emt 0:00:51]} 36. Rxf2 {[%emt 0:00:16]} Rc8 {[%emt 0:00:43]} 37. Rf1 {[%emt 0:00:01]} Qe7 {[%emt 0:03:36]} 38. Qe3 {[%emt 0:01:09]} Kg7 {[%emt 0:00:32]} 39. Re1 {[%emt 0:00:32]} Qc5 {[%emt 0:00:18]} 40. Qxd3 {[%emt 0:00:32]} Qc2 {[%emt 0:00:53]} 41. Qe3 {[%emt 0:02:11]} Qf5 {[%emt 0:01:34]} 42. Qd4 {[%emt 0:04:27]} Qe6 {[%emt 0:00:36]} 43. Qf4 {[%emt 0:01:43]} b3 {[%emt 0:08:41]} 44. axb3 {[%emt 0:04:10]} a4 {[%emt 0:00:17]} 45. bxa4 {[%emt 0:16:07]} Rc4 {[%emt 0:03:20]} 46. Re4 {[%emt 0:00:01]} Rc2 {[%emt 0:00:05]} 47. Qh6+ {[%emt 0:01:21]} Kg8 {[%emt 0:00:04]} 48. Nf6+ {[%emt 0:00:09]} Nxf6 {[%emt 0:00:06]} 49. exf6 {[%emt 0:00:03]} 1-0

[Event "Dutch Open-ch 2019"]
[Site "Dieren"]
[Date "2019.07.30"]
[Round "7.9"]
[White "Zwirs, Nico"]
[Black "Maatman, Nick"]
[Result "1-0"]
[ECO "B33"]
[WhiteElo "2380"]
[BlackElo "2407"]
[Annotator "NA"]
[PlyCount "77"]
[EventDate "2019.07.23"]
[EventType "swiss"]
[EventCountry "NED"]
[SourceTitle "playchess.com"]
[Source "ChessBase"]
[SourceQuality "1"]
[TimeControl "40/5400+30:1800+30"]

1. e4 {[%emt 0:00:00]} c5 {[%emt 0:02:31]} 2. Nf3 {[%emt 0:00:20]} Nc6 {[%emt 0:00:05]} 3. d4 {[%emt 0:06:18]} cxd4 {[%emt 0:00:19]} 4. Nxd4 {[%emt 0:00:02]} Qb6 {[%emt 0:00:07]} 5. Nb3 {[%emt 0:01:02]} Nf6 {[%emt 0:00:14]} 6. Nc3 {[%emt 0:00:09]} e6 {[%emt 0:00:10]} 7. Qe2 {[%emt 0:03:58]} Bb4 {[%emt 0:10:00]} 8. Bd2 {[%emt 0:00:42]} O-O {[%emt 0:03:12]} 9. a3 {[%emt 0:01:32]} Be7 {[%emt 0:04:33]} 10. O-O-O {[%emt 0:00:34]} d5 {[%emt 0:03:36]} 11. e5 {[%emt 0:00:52]} Nd7 {[%emt 0:02:42]} 12. f4 {[%emt 0:00:04]} a6 {[%emt 0:08:03]} 13. Qh5 {[%emt 0:02:57]} Rd8 {[%emt 0:15:47]} 14. Bd3 {[%emt 0:09:25]} Nf8 {[%emt 0:00:02]} 15. Rhf1 {[%emt 0:07:24]} Qc7 {[%emt 0:02:38]} 16. Rf3 {[%emt 0:02:37]} g6 {[%emt 0:02:20]} 17. Qh6 {[%emt 0:04:15]} b5 {[%emt 0:01:52]} 18. g4 {[%emt 0:23:58]} b4 {[%emt 0:02:47]} 19. axb4 {[%emt 0:00:10]} Nxb4 {[%emt 0:01:07]} 20. Kb1 {[%emt 0:07:34]} Nxd3 {[%emt 0:03:10]} 21. Rxd3 {[%emt 0:00:14]} a5 {[%emt 0:05:40]} 22. f5 {[%emt 0:02:06]} exf5 {[%emt 0:02:50]} 23. Nxd5 {[%emt 0:03:22]} Rxd5 {[%emt 0:00:20]} 24. Rxd5 {[%emt 0:00:02]} a4 {[%emt 0:02:15]} 25. Nd4 {[%emt 0:04:01]} fxg4 {[%emt 0:03:08]} 26. Bg5 {[%emt 0:01:53]} Bxg5 {[%emt 0:07:17]} 27. Qxg5 {[%emt 0:00:05]} Be6 {[%emt 0:03:21]} 28. Nxe6 {[%emt 0:04:25]} Nxe6 {[%emt 0:00:02]} 29. Qf6 {[%emt 0:00:19]} Qc4 {[%emt 0:06:39]} 30. Rd7 {[%emt 0:04:17]} Rf8 {[%emt 0:00:01]} 31. Rf1 {[%emt 0:03:53]} Nc5 {[%emt 0:00:19]} 32. e6 {[%emt 0:04:42]} Nxd7 {[%emt 0:00:44]} 33. exd7 {[%emt 0:00:03]} Qd5 {[%emt 0:03:18]} 34. Qe7 {[%emt 0:01:00]} Kg7 {[%emt 0:01:15]} 35. Qf6+ {[%emt 0:00:54]} Kg8 {[%emt 0:00:09]} 36. Qe7 {[%emt 0:00:08]} Kg7 {[%emt 0:00:04]} 37. Qe8 {[%emt 0:01:16]} a3 {[%emt 0:04:25]} 38. d8=Q {[%emt 0:00:10]} Qxd8 {[%emt 0:01:05]} 39. Rxf7+ {[%emt 0:00:06]} 1-0

[Event "Dutch Open-ch 2019"]
[Site "Dieren"]
[Date "2019.07.30"]
[Round "7.10"]
[White "Lai, Hing Ting"]
[Black "Baselmans, Sam"]
[Result "1-0"]
[ECO "E69"]
[WhiteElo "2460"]
[BlackElo "2064"]
[Annotator "ChessBase"]
[PlyCount "107"]
[EventDate "2019.07.23"]
[EventType "swiss"]
[EventCountry "NED"]
[SourceTitle "playchess.com"]
[Source "ChessBase"]
[SourceQuality "1"]
[TimeControl "40/5400+30:1800+30"]

1. d4 {[%emt 0:00:00]} Nf6 {[%emt 0:00:00]} 2. c4 {[%emt 0:00:00]} g6 {[%emt 0:00:00]} 3. Nf3 {[%emt 0:00:00]} Bg7 {[%emt 0:00:00]} 4. g3 {[%emt 0:00:00]} d6 {[%emt 0:00:00]} 5. Bg2 {[%emt 0:00:01]} O-O {[%emt 0:00:00]} 6. O-O {[%emt 0:00:05]} c6 {[%emt 0:00:00]} 7. Nc3 {[%emt 0:00:08]} Qa5 {[%emt 0:00:09]} 8. h3 {[%emt 0:00:10]} Nbd7 {[%emt 0:00:58]} 9. e4 {[%emt 0:00:24]} e5 {[%emt 0:00:06]} 10. Qc2 {[%emt 0:02:54]} exd4 {[%emt 0:08:26]} 11. Nxd4 {[%emt 0:01:07]} Re8 {[%emt 0:00:02]} 12. Be3 {[%emt 0:00:49]} Qc7 {[%emt 0:19:44]} 13. Rad1 {[%emt 0:02:30]} Nb6 {[%emt 0:01:47]} 14. b3 {[%emt 0:01:29]} Be6 {[%emt 0:00:41]} 15. f4 {[%emt 0:04:39]} Rad8 {[%emt 0:00:21]} 16. Bf2 {[%emt 0:04:52]} Qb8 {[%emt 0:03:49]} 17. a4 {[%emt 0:01:30]} Qc7 {[%emt 0:04:55]} 18. a5 {[%emt 0:05:54]} Na8 {[%emt 0:04:02]} 19. Nxe6 {[%emt 0:02:34]} Rxe6 {[%emt 0:00:13]} 20. b4 {[%emt 0:00:32]} Qb8 {[%emt 0:03:31]} 21. g4 {[%emt 0:03:16]} Ree8 {[%emt 0:03:31]} 22. b5 {[%emt 0:03:23]} Nc7 {[%emt 0:03:04]} 23. bxc6 {[%emt 0:03:57]} bxc6 {[%emt 0:00:12]} 24. Rb1 {[%emt 0:01:55]} Qa8 {[%emt 0:01:49]} 25. Rfd1 {[%emt 0:01:40]} Ne6 {[%emt 0:02:27]} 26. Ne2 {[%emt 0:00:33]} Bf8 {[%emt 0:02:41]} 27. Qa4 {[%emt 0:11:19]} Rc8 {[%emt 0:10:03]} 28. Qc2 {[%emt 0:01:42]} Rcd8 {[%emt 0:01:26]} 29. Kh2 {[%emt 0:03:31]} Nd7 {[%emt 0:02:49]} 30. Bg3 {[%emt 0:02:29]} Nec5 {[%emt 0:00:59]} 31. Nd4 {[%emt 0:01:30]} Rc8 {[%emt 0:00:54]} 32. g5 {[%emt 0:02:02]} Rc7 {[%emt 0:04:07]} 33. h4 {[%emt 0:02:17]} Bg7 {[%emt 0:01:29]} 34. h5 {[%emt 0:09:31]} Re7 {[%emt 0:02:30]} 35. h6 {[%emt 0:02:54]} Bh8 {[%emt 0:00:04]} 36. Nb3 {[%emt 0:02:29]} Qe8 {[%emt 0:03:33]} 37. Nxc5 {[%emt 0:03:09]} dxc5 {[%emt 0:05:30]} 38. e5 {[%emt 0:01:20]} Nxe5 {[%emt 0:01:00]} 39. fxe5 {[%emt 0:00:07]} Bxe5 {[%emt 0:00:05]} 40. Bxe5 {[%emt 0:00:08]} Rxe5 {[%emt 0:00:07]} 41. Qc3 {[%emt 0:33:03]} f6 {[%emt 0:31:43]} 42. gxf6 {[%emt 0:00:49]} Rh5+ {[%emt 0:02:06]} 43. Kg1 {[%emt 0:00:17]} Rxh6 {[%emt 0:00:19]} 44. Re1 {[%emt 0:00:42]} Qf8 {[%emt 0:00:09]} 45. Re7 {[%emt 0:00:32]} Rxe7 {[%emt 0:01:15]} 46. fxe7 {[%emt 0:00:06]} Qxe7 {[%emt 0:00:10]} 47. a6 {[%emt 0:02:02]} Qd6 {[%emt 0:01:06]} 48. Qe3 {[%emt 0:05:55]} Rh4 {[%emt 0:04:44]} 49. Qe8+ {[%emt 0:01:27]} Kg7 {[%emt 0:00:05]} 50. Rb7+ {[%emt 0:00:19]} Kh6 {[%emt 0:00:30]} 51. Qe3+ {[%emt 0:01:16]} g5 {[%emt 0:00:32]} 52. Rf7 {[%emt 0:01:40]} Rxc4 {[%emt 0:00:00]} 53. Be4 {[%emt 0:00:00]} Qd1+ {[%emt 0:00:00]} 54. Kf2 {[%emt 0:00:00]} 1-0

[Event "Dutch Open-ch 2019"]
[Site "Dieren"]
[Date "2019.07.30"]
[Round "7.11"]
[White "Vrolijk, Liam"]
[Black "Ojas Kulkarni"]
[Result "1-0"]
[ECO "D74"]
[WhiteElo "2478"]
[BlackElo "2251"]
[Annotator "ChessBase"]
[PlyCount "51"]
[EventDate "2019.07.23"]
[EventType "swiss"]
[EventCountry "NED"]
[SourceTitle "playchess.com"]
[Source "ChessBase"]
[SourceQuality "1"]
[TimeControl "40/5400+30:1800+30"]

1. d4 {[%emt 0:08:11]} Nf6 {[%emt 0:00:00]} 2. c4 {[%emt 0:00:14]} g6 {[%emt 0:00:00]} 3. g3 {[%emt 0:00:33]} Bg7 {[%emt 0:00:15]} 4. Bg2 {[%emt 0:00:09]} d5 {[%emt 0:00:08]} 5. cxd5 {[%emt 0:01:08]} Nxd5 {[%emt 0:00:07]} 6. Nf3 {[%emt 0:00:22]} O-O {[%emt 0:03:45]} 7. O-O {[%emt 0:00:13]} Nc6 {[%emt 0:00:04]} 8. Nc3 {[%emt 0:02:43]} e5 {[%emt 0:00:04]} 9. Bg5 {[%emt 0:00:50]} Nxc3 {[%emt 0:06:15]} 10. bxc3 {[%emt 0:00:08]} Qd6 {[%emt 0:00:08]} 11. d5 {[%emt 0:07:25]} Na5 {[%emt 0:02:57]} 12. Nd2 {[%emt 0:01:33]} f5 {[%emt 0:06:30]} 13. c4 {[%emt 0:07:49]} c5 {[%emt 0:06:02]} 14. dxc6 {[%emt 0:04:23]} h6 {[%emt 0:01:41]} 15. Nb3 {[%emt 0:06:04]} Qxd1 {[%emt 0:02:51]} 16. Rfxd1 {[%emt 0:02:11]} Nxc6 {[%emt 0:29:09]} 17. Bd5+ {[%emt 0:01:13]} Kh7 {[%emt 0:00:03]} 18. Be3 {[%emt 0:00:06]} Re8 {[%emt 0:00:48]} 19. Rab1 {[%emt 0:04:03]} Nb4 {[%emt 0:01:50]} 20. Bxb7 {[%emt 0:03:15]} Bxb7 {[%emt 0:02:29]} 21. Na5 {[%emt 0:02:24]} Ba6 {[%emt 0:12:00]} 22. Rxb4 {[%emt 0:02:39]} f4 {[%emt 0:02:32]} 23. Bc5 {[%emt 0:05:59]} Rec8 {[%emt 0:01:57]} 24. Rd6 {[%emt 0:01:27]} Bf8 {[%emt 0:03:44]} 25. Rxa6 {[%emt 0:02:58]} Bxc5 {[%emt 0:17:11]} 26. Rb7+ {[%emt 0:00:09]} 1-0

[Event "Dutch Open-ch 2019"]
[Site "Dieren"]
[Date "2019.07.30"]
[Round "7.12"]
[White "Ashwath, R.."]
[Black "Goswami, Vedant"]
[Result "1-0"]
[ECO "D10"]
[WhiteElo "2365"]
[BlackElo "2046"]
[Annotator "NA"]
[PlyCount "91"]
[EventDate "2019.07.23"]
[EventType "swiss"]
[EventCountry "NED"]
[SourceTitle "playchess.com"]
[Source "ChessBase"]
[SourceQuality "1"]
[TimeControl "40/5400+30:1800+30"]

1. d4 {[%emt 0:02:53]} d5 {[%emt 0:00:00]} 2. c4 {[%emt 0:00:23]} c6 {[%emt 0:00:00]} 3. cxd5 {[%emt 0:01:53]} cxd5 {[%emt 0:00:02]} 4. Bf4 {[%emt 0:00:03]} Nf6 {[%emt 0:01:00]} 5. Nc3 {[%emt 0:01:10]} Nc6 {[%emt 0:00:07]} 6. e3 {[%emt 0:00:11]} a6 {[%emt 0:00:15]} 7. Bd3 {[%emt 0:00:27]} Bg4 {[%emt 0:03:24]} 8. Nge2 {[%emt 0:02:00]} e6 {[%emt 1:29:12]} 9. O-O {[%emt 0:00:37]} Be7 {[%emt 0:00:00]} 10. Rc1 {[%emt 0:01:29]} O-O {[%emt 0:00:00]} 11. f3 {[%emt 0:01:29]} Bh5 {[%emt 0:00:00]} 12. Na4 {[%emt 0:00:29]} Nd7 {[%emt 0:00:00]} 13. a3 {[%emt 0:06:57]} e5 {[%emt 0:00:00]} 14. dxe5 {[%emt 0:04:32]} Ndxe5 {[%emt 0:00:00]} 15. Bb1 {[%emt 0:01:08]} Nc4 {[%emt 0:00:00]} 16. Nac3 {[%emt 0:08:13]} g5 {[%emt 0:00:00]} 17. Nxd5 {[%emt 0:08:33]} Nxb2 {[%emt 0:00:00]} 18. Qb3 {[%emt 0:10:16]} gxf4 {[%emt 0:00:00]} 19. Nexf4 {[%emt 0:01:03]} Bg6 {[%emt 0:00:00]} 20. Qxb2 {[%emt 0:05:26]} Rb8 {[%emt 0:06:00]} 21. Rfd1 {[%emt 0:01:05]} Qd6 {[%emt 0:00:00]} 22. Nxe7+ {[%emt 0:05:14]} Qxe7 {[%emt 0:00:00]} 23. Nd5 {[%emt 0:00:21]} Qe5 {[%emt 0:00:00]} 24. Qxe5 {[%emt 0:01:13]} Nxe5 {[%emt 0:00:00]} 25. f4 {[%emt 0:00:18]} Bxb1 {[%emt 0:00:00]} 26. fxe5 {[%emt 0:00:55]} Bg6 {[%emt 0:00:00]} 27. Nf6+ {[%emt 0:00:11]} Kg7 {[%emt 0:00:00]} 28. Nd7 {[%emt 0:00:07]} Rbe8 {[%emt 0:00:00]} 29. Nxf8 {[%emt 0:00:57]} Kxf8 {[%emt 0:00:00]} 30. Rc5 {[%emt 0:01:30]} b6 {[%emt 0:00:00]} 31. Rcd5 {[%emt 0:00:26]} Kg7 {[%emt 0:00:00]} 32. R1d4 {[%emt 0:00:58]} Rc8 {[%emt 0:00:00]} 33. Kf2 {[%emt 0:01:40]} Rc2+ {[%emt 0:00:00]} 34. Rd2 {[%emt 0:02:26]} Rc3 {[%emt 0:00:00]} 35. a4 {[%emt 0:04:26]} Bc2 {[%emt 0:00:00]} 36. Rd6 {[%emt 0:04:16]} Bxa4 {[%emt 0:00:00]} 37. Rxb6 {[%emt 0:00:06]} Bb3 {[%emt 0:00:00]} 38. Rxa6 {[%emt 0:02:43]} Rc5 {[%emt 0:00:00]} 39. Rb6 {[%emt 0:00:57]} Be6 {[%emt 0:00:00]} 40. Rdb2 {[%emt 0:01:00]} Rxe5 {[%emt 0:00:00]} 41. R6b5 {[%emt 0:30:25]} Rxb5 {[%emt 0:28:21]} 42. Rxb5 {[%emt 0:00:02]} Kg6 {[%emt 0:00:12]} 43. Kg3 {[%emt 0:01:02]} Kf6 {[%emt 0:00:29]} 44. Kf4 {[%emt 0:00:03]} h6 {[%emt 0:01:08]} 45. g4 {[%emt 0:01:32]} Bc4 {[%emt 0:00:46]} 46. g5+ {[%emt 0:19:55]} 1-0

[Event "Dutch Open-ch 2019"]
[Site "Dieren"]
[Date "2019.07.30"]
[Round "7.13"]
[White "Vogel, Jaap"]
[Black "Kolbus, Dietmar"]
[Result "0-1"]
[ECO "A48"]
[WhiteElo "2126"]
[BlackElo "2281"]
[Annotator "NA"]
[PlyCount "62"]
[EventDate "2019.07.23"]
[EventType "swiss"]
[EventCountry "NED"]
[SourceTitle "playchess.com"]
[Source "ChessBase"]
[SourceQuality "1"]
[TimeControl "40/5400+30:1800+30"]

1. d4 {[%emt 0:00:00]} Nf6 {[%emt 0:00:00]} 2. Bf4 {[%emt 0:00:00]} b6 {[%emt 0:00:00]} 3. e3 {[%emt 0:00:24]} Bb7 {[%emt 0:00:00]} 4. Nf3 {[%emt 0:00:11]} g6 {[%emt 0:00:25]} 5. Nbd2 {[%emt 0:03:24]} Bg7 {[%emt 0:00:06]} 6. h3 {[%emt 0:00:55]} O-O {[%emt 0:00:08]} 7. Be2 {[%emt 0:01:29]} c5 {[%emt 0:00:09]} 8. c3 {[%emt 0:01:18]} d6 {[%emt 0:00:09]} 9. O-O {[%emt 0:00:48]} Nbd7 {[%emt 0:00:06]} 10. Bh2 {[%emt 0:00:18]} a6 {[%emt 0:00:30]} 11. a4 {[%emt 0:02:00]} Ra7 {[%emt 0:00:11]} 12. Qb1 {[%emt 0:14:16]} Qa8 {[%emt 0:00:14]} 13. b4 {[%emt 0:21:09]} Ne4 {[%emt 0:01:00]} 14. Nxe4 {[%emt 0:01:09]} Bxe4 {[%emt 0:00:04]} 15. Qb3 {[%emt 0:00:41]} Rc7 {[%emt 0:04:01]} 16. Rac1 {[%emt 0:03:56]} Nf6 {[%emt 0:04:56]} 17. Rfd1 {[%emt 0:06:15]} cxd4 {[%emt 0:03:20]} 18. cxd4 {[%emt 0:17:15]} Rfc8 {[%emt 0:00:16]} 19. Rxc7 {[%emt 0:00:30]} Rxc7 {[%emt 0:00:07]} 20. Ne1 {[%emt 0:00:10]} Qc8 {[%emt 0:05:13]} 21. f3 {[%emt 0:04:13]} Bd5 {[%emt 0:00:19]} 22. Qb2 {[%emt 0:03:44]} Bh6 {[%emt 0:03:53]} 23. Kf2 {[%emt 0:02:42]} Bc4 {[%emt 0:01:14]} 24. e4 {[%emt 0:00:50]} Bxe2 {[%emt 0:04:27]} 25. Qxe2 {[%emt 0:01:55]} Rc4 {[%emt 0:00:17]} 26. f4 {[%emt 0:08:42]} d5 {[%emt 0:01:29]} 27. exd5 {[%emt 0:00:48]} Nxd5 {[%emt 0:00:06]} 28. Qe5 {[%emt 0:01:45]} e6 {[%emt 0:00:31]} 29. Rd2 {[%emt 0:01:43]} Bg7 {[%emt 0:00:48]} 30. Qe4 {[%emt 0:01:03]} Rxb4 {[%emt 0:00:42]} 31. Nf3 {[%emt 0:00:41]} Rxa4 {[%emt 0:00:15]} 0-1

[Event "Dutch Open-ch 2019"]
[Site "Dieren"]
[Date "2019.07.30"]
[Round "7.14"]
[White "Munshi, Aditya"]
[Black "Neelotpal, Das"]
[Result "0-1"]
[ECO "B40"]
[WhiteElo "2125"]
[BlackElo "2406"]
[Annotator "NA"]
[PlyCount "88"]
[EventDate "2019.07.23"]
[EventType "swiss"]
[EventCountry "NED"]
[SourceTitle "playchess.com"]
[Source "ChessBase"]
[SourceQuality "1"]
[TimeControl "40/5400+30:1800+30"]

1. e4 {[%emt 0:00:00]} c5 {[%emt 0:00:00]} 2. Nf3 {[%emt 0:00:00]} e6 {[%emt 0:00:00]} 3. g3 {[%emt 0:00:00]} Nc6 {[%emt 0:00:23]} 4. Bg2 {[%emt 0:00:00]} Nf6 {[%emt 0:00:28]} 5. Qe2 {[%emt 0:00:00]} e5 {[%emt 0:06:15]} 6. c3 {[%emt 0:02:52]} d6 {[%emt 0:02:38]} 7. h3 {[%emt 0:13:01]} Be7 {[%emt 0:04:23]} 8. O-O {[%emt 0:00:37]} O-O {[%emt 0:03:41]} 9. Rd1 {[%emt 0:00:41]} Qc7 {[%emt 0:01:13]} 10. Na3 {[%emt 0:06:34]} a6 {[%emt 0:00:15]} 11. d4 {[%emt 0:01:19]} Re8 {[%emt 0:11:15]} 12. d5 {[%emt 0:03:31]} Na7 $14 {[%emt 0:00:52]} 13. Nc2 {[%emt 0:04:16]} Bd7 {[%emt 0:07:43]} 14. Nh4 {[%emt 0:06:47]} g6 {[%emt 0:01:52]} 15. a4 {[%emt 0:12:17]} Kh8 {[%emt 0:04:43]} 16. b4 {[%emt 0:17:21]} Nc8 {[%emt 0:06:48]} 17. Be3 {[%emt 0:03:10]} cxb4 {[%emt 0:04:12]} 18. cxb4 {[%emt 0:00:32]} Nb6 {[%emt 0:00:07]} 19. Rdc1 {[%emt 0:04:22]} Rec8 {[%emt 0:11:52]} 20. a5 {[%emt 0:03:59]} Na4 {[%emt 0:07:19]} 21. Na3 {[%emt 0:02:55]} Qd8 {[%emt 0:00:28]} 22. Nc4 {[%emt 0:00:38]} Bb5 {[%emt 0:00:45]} 23. Qa2 {[%emt 0:01:08]} Bxc4 {[%emt 0:08:55]} 24. Rxc4 {[%emt 0:01:33]} Nc3 {[%emt 0:00:12]} 25. Qb3 {[%emt 0:01:22]} Ne2+ {[%emt 0:01:44]} 26. Kh2 {[%emt 0:06:44]} Nd4 {[%emt 0:00:12]} 27. Rxd4 {[%emt 0:02:07]} exd4 {[%emt 0:00:08]} 28. Bxd4 {[%emt 0:00:04]} Kg8 {[%emt 0:02:20]} 29. f4 {[%emt 0:00:26]} Nh5 {[%emt 0:05:04]} 30. Nf3 {[%emt 0:00:15]} Qc7 {[%emt 0:00:32]} 31. Re1 {[%emt 0:04:55]} Qc4 {[%emt 0:05:53]} 32. Qb2 {[%emt 0:00:11]} Qd3 {[%emt 0:00:54]} 33. Re2 {[%emt 0:01:34]} Rc7 {[%emt 0:02:14]} 34. Bb6 {[%emt 0:01:12]} Rc3 {[%emt 0:00:46]} 35. Rd2 {[%emt 0:00:36]} Qc4 {[%emt 0:00:34]} 36. Bd4 {[%emt 0:00:28]} Rb3 {[%emt 0:00:16]} 37. Qa1 {[%emt 0:00:30]} Qxb4 {[%emt 0:00:42]} 38. Rc2 {[%emt 0:00:31]} Ra3 {[%emt 0:00:43]} 39. Qc1 {[%emt 0:00:16]} Rxf3 {[%emt 0:00:28]} 40. Rc8+ {[%emt 0:00:04]} Rxc8 {[%emt 0:00:09]} 41. Qxc8+ {[%emt 0:30:05]} Bf8 {[%emt 0:30:04]} 42. e5 {[%emt 0:00:00]} Qxd4 {[%emt 0:00:00]} 43. exd6 {[%emt 0:00:00]} Qf2 {[%emt 0:00:00]} 44. d7 {[%emt 0:00:00]} Rxg3 {[%emt 0:00:00]} 0-1

[Event "Dutch Open-ch 2019"]
[Site "Dieren"]
[Date "2019.07.30"]
[Round "7.15"]
[White "Grooten, Herman"]
[Black "Van Baar, Esper"]
[Result "0-1"]
[ECO "D48"]
[WhiteElo "2310"]
[BlackElo "2108"]
[Annotator "NA"]
[PlyCount "64"]
[EventDate "2019.07.23"]
[EventType "swiss"]
[EventCountry "NED"]
[SourceTitle "playchess.com"]
[Source "ChessBase"]
[SourceQuality "1"]
[TimeControl "40/5400+30:1800+30"]

1. d4 {[%emt 0:00:00]} Nf6 {[%emt 0:03:18]} 2. c4 {[%emt 0:00:00]} e6 {[%emt 0:00:49]} 3. Nf3 {[%emt 0:00:00]} d5 {[%emt 0:00:53]} 4. Nc3 {[%emt 0:00:13]} dxc4 {[%emt 0:01:37]} 5. e3 {[%emt 0:00:53]} a6 {[%emt 0:00:17]} 6. Bxc4 {[%emt 0:01:19]} b5 {[%emt 0:02:13]} 7. Bd3 {[%emt 0:00:15]} c5 {[%emt 0:01:33]} 8. a4 {[%emt 0:04:54]} b4 {[%emt 0:00:30]} 9. Ne4 {[%emt 0:00:52]} Nbd7 {[%emt 0:03:58]} 10. dxc5 {[%emt 0:09:56]} Bxc5 {[%emt 0:08:37]} 11. Nxf6+ {[%emt 0:05:51]} Nxf6 {[%emt 0:01:00]} 12. e4 {[%emt 0:00:30]} Bb7 {[%emt 0:04:35]} 13. Qe2 {[%emt 0:07:22]} Qb6 {[%emt 0:04:55]} 14. O-O {[%emt 0:03:44]} Rd8 {[%emt 0:06:54]} 15. a5 {[%emt 0:02:18]} Qa7 {[%emt 0:03:06]} 16. Bc2 {[%emt 0:04:56]} Bc6 {[%emt 0:06:16]} 17. Ne5 {[%emt 0:05:04]} Bb5 {[%emt 0:05:25]} 18. Ba4 {[%emt 0:03:22]} Bxa4 {[%emt 0:00:04]} 19. Rxa4 {[%emt 0:00:05]} Qb7 {[%emt 0:01:33]} 20. Bg5 {[%emt 0:07:24]} Rd4 {[%emt 0:18:50]} 21. Bxf6 {[%emt 0:25:23]} gxf6 {[%emt 0:00:13]} 22. Qc2 {[%emt 0:06:03]} Qb5 {[%emt 0:03:48]} 23. Nf3 {[%emt 0:01:03]} Rd8 {[%emt 0:04:42]} 24. b3 {[%emt 0:01:20]} Ke7 {[%emt 0:02:27]} 25. e5 {[%emt 0:01:09]} f5 {[%emt 0:01:22]} 26. Rc1 {[%emt 0:00:46]} Rd3 {[%emt 0:02:17]} 27. Ra2 {[%emt 0:02:25]} Rhd8 {[%emt 0:02:18]} 28. Qb1 {[%emt 0:02:07]} Qd7 {[%emt 0:02:47]} 29. Kf1 {[%emt 0:02:31]} Qd5 {[%emt 0:01:10]} 30. Qa1 {[%emt 0:01:47]} Qxb3 {[%emt 0:00:53]} 31. Ne1 {[%emt 0:00:27]} Rd1 {[%emt 0:01:20]} 32. Rxd1 {[%emt 0:00:54]} Rxd1 {[%emt 0:00:26]} 0-1

[Event "Dutch Open-ch 2019"]
[Site "Dieren"]
[Date "2019.07.30"]
[Round "7.16"]
[White "Van Helvoort, Rob"]
[Black "Wedda, Dries"]
[Result "1/2-1/2"]
[ECO "D05"]
[WhiteElo "2104"]
[BlackElo "2234"]
[Annotator "NA"]
[PlyCount "48"]
[EventDate "2019.07.23"]
[EventType "swiss"]
[EventCountry "NED"]
[SourceTitle "playchess.com"]
[Source "ChessBase"]
[SourceQuality "1"]
[TimeControl "40/5400+30:1800+30"]

1. d4 {[%emt 0:00:00]} Nf6 {[%emt 0:00:00]} 2. Nf3 {[%emt 0:00:00]} b6 {[%emt 0:00:20]} 3. e3 {[%emt 0:00:00]} Bb7 {[%emt 0:00:06]} 4. Nbd2 {[%emt 0:00:11]} e6 {[%emt 0:03:44]} 5. Bd3 {[%emt 0:00:14]} d5 {[%emt 0:00:11]} 6. Ne5 {[%emt 0:05:34]} Bd6 {[%emt 0:09:54]} 7. O-O {[%emt 0:03:18]} O-O {[%emt 0:05:27]} 8. f4 {[%emt 0:02:45]} Ne4 {[%emt 0:02:49]} 9. Nxe4 {[%emt 0:00:26]} dxe4 {[%emt 0:00:07]} 10. Bc4 {[%emt 0:00:17]} c5 {[%emt 0:07:02]} 11. b3 {[%emt 0:17:48]} Nc6 {[%emt 0:10:10]} 12. Nxc6 {[%emt 0:16:44]} Bxc6 {[%emt 0:00:21]} 13. Bb2 {[%emt 0:00:41]} Qe7 {[%emt 0:02:51]} 14. d5 {[%emt 0:09:15]} exd5 {[%emt 0:07:03]} 15. Bxd5 {[%emt 0:00:23]} Bxd5 {[%emt 0:00:33]} 16. Qxd5 {[%emt 0:00:02]} Rad8 {[%emt 0:00:32]} 17. Qf5 {[%emt 0:01:25]} Rd7 {[%emt 0:05:32]} 18. Rfd1 {[%emt 0:01:36]} Rfd8 {[%emt 0:00:24]} 19. Qg4 {[%emt 0:02:06]} f6 {[%emt 0:04:02]} 20. Qe2 {[%emt 0:00:51]} Qe6 {[%emt 0:38:52]} 21. Qg4 {[%emt 0:36:54]} f5 22. Qxf5 {[%emt 0:00:30]} Qe7 23. Re1 Bxf4 24. Qg4 {[%emt 0:01:00]} Bb8 1/2-1/2